Workbook

Sheet inv_sumnistro_enero_2022_
A1: INSTITUTO DEL TABACO DE LA REPÚBLICA DOMINICANA
A2: INVENTARIO SUMINISTRO
A3: MES DE ENERO 2022
A6: Fecha de adquisión y/o registro | B6: Artículo | C6: Código Institucional | D6: Descripción artículo | E6: Existencia | F6: Unidad | G6: Costo | H6: Valor
A9: 2018-03-23 | B9: GENERAL ( 10 ) | C9: CART-BC1-3BK | D9: CARTUCHO BC1-3BK | E9: 2 | F9: UND | G9: 757.872 | H9: =+G9*E9 -> 1515.744
A10: 2018-03-23 | B10: GENERAL ( 10 ) | C10: CARTUCH-HP-95 | D10: CARTUCHO HP-95 COLOR | E10: 4 | F10: UND | G10: 1416 | H10: 5664
A11: 2017-02-01 | B11: GENERAL ( 10 ) | C11: CINTA-001 | D11: CINTA ADHESIVA | E11: 14 | F11: UNIDAD | G11: 77.998 | H11: 1091.972
A12: 2018-03-23 | B12: GENERAL ( 10 ) | C12: MASKT-001 | D12: MASKING TAPE | E12: 2 | F12: UND | G12: 45 | H12: 90
A13: 2018-03-23 | B13: GENERAL ( 10 ) | C13: PAPE-CON-9 1/2X5 1/2 | D13: PAPEL CONTINUO 9 1/2 X 5 1/2 P. FACT. | E13: 4 | F13: UNIDAD | G13: 601.694 | H13: 2406.776
A14: 2018-03-23 | B14: GENERAL ( 10 ) | C14: PERFO-001 | D14: PERFORADORA DE 3 HOYOS | E14: 3 | F14: UND | G14: 350 | H14: 1050
A15: 2017-02-01 | B15: OTROS ( 5 ) | C15: AMBIEN 2 | D15: AMBIENTADOR 2 | E15: 34 | F15: UND | G15: 85.02144 | H15: 2890.72896
A16: 2017-02-06 | B16: OTROS ( 5 ) | C16: BRILLO .V. | D16: BRILLO VERDE | E16: 18 | F16: UND | G16: 59.885 | H16: 1077.93
A17: 2018-03-23 | B17: OTROS ( 5 ) | C17: C.D.C | D17: CINTA DOBLE CARA | E17: 26 | F17: UND | G17: 40 | H17: 1040
A18: 2019-02-26 | B18: OTROS ( 5 ) | C18: CD,. | D18: CUBIERTOS DES. | E18: 49 | F18: PAQUET | G18: 32.12152 | H18: 1573.95448
A19: 2018-03-23 | B19: OTROS ( 5 ) | C19: CREM | D19: CREMORA | E19: 41 | F19: UND | G19: 321.70498 | H19: 13189.90418
A20: 2018-03-23 | B20: OTROS ( 5 ) | C20: GRAPAS 3 | D20: GRAPAS 3/4 | E20: 7 | F20: CAJA | G20: 211.864 | H20: 1483.048
A21: 2018-03-23 | B21: OTROS ( 5 ) | C21: LAN | D21: LANILLA P/LIMPIAR | E21: 52 | F21: UND | G21: 44.9934 | H21: 2339.6568
A22: 2017-01-31 | B22: OTROS ( 5 ) | C22: LT, | D22: LIBRETA TIMBRADA | E22: 165 | F22: UND | G22: 197.65 | H22: 32612.25
A23: 2018-02-21 | B23: OTROS ( 5 ) | C23: PDN6 | D23: PLATOS DESECH. N6 | E23: 32 | F23: PAQUET | G23: 52.038 | H23: 1665.216
A24: 2019-02-26 | B24: OTROS ( 5 ) | C24: T.L210C | D24: TINTA L210 CYAN | E24: 6 | F24: UND | G24: 450.15558 | H24: 2700.93348
A25: 2019-02-26 | B25: OTROS ( 5 ) | C25: T.S.2031 | D25: TONER SHARP 2031 C/CHIP | E25: 6 | F25: UND | G25: 4669.49403 | H25: 28016.96418
A26: 2017-02-23 | B26: OTROS ( 5 ) | C26: TS.M. | D26: TALON. SOLICITUD MATERIALES | E26: 44 | F26: UND | G26: 150 | H26: 6600
A27: 2017-03-31 | B27: SUMINISTROS ( 6 ) | C27: 12 | D27: RESMA DE PAPEL8 1/2 X11 | E27: 13 | F27: RESMA | G27: 230.9968 | H27: 3002.9584
A28: 2019-02-26 | B28: SUMINISTROS ( 6 ) | C28: AZ. | D28: AZUCAR | E28: 8 | F28: SACOS | G28: 3512.39192 | H28: 28099.13536
A29: 2017-04-24 | B29: SUMINISTROS ( 6 ) | C29: C.2 | D29: CLIP BILLETERO 51MM | E29: 41 | F29: CAJA | G29: 171.01062 | H29: 7011.43542
A30: 2017-02-07 | B30: SUMINISTROS ( 6 ) | C30: C.B 125MM | D30: CLIP BILLETERO 125MM | E30: 1 | F30: CAJA | G30: 74.26722 | H30: 74.26722
A31: 2018-03-23 | B31: SUMINISTROS ( 6 ) | C31: C.E 890 | D31: CINTA EPSON 890 | E31: 6 | F31: UND | G31: 325.53846 | H31: 1953.23076
A32: 2018-03-23 | B32: SUMINISTROS ( 6 ) | C32: CART. HP-94 | D32: CARTUCHO HP-98 (NUEVO) | E32: 4 | F32: UND | G32: 923.78905 | H32: 3695.1562
A33: 2017-04-24 | B33: SUMINISTROS ( 6 ) | C33: CARTUCHO HP-93 | D33: CARTUCHO HP-93 COLOR | E33: 3 | F33: UND | G33: 1019.277 | H33: 3057.831
A34: 2019-02-15 | B34: SUMINISTROS ( 6 ) | C34: CB 1.5 | D34: CLIP BILLETERO 41MM | E34: 5 | F34: CAJA | G34: 134.034 | H34: 670.17
A35: 2019-02-15 | B35: SUMINISTROS ( 6 ) | C35: CCF401 | D35: CARTUCHO LT HP-CF401A | E35: 3 | F35: UND | G35: 2842.502 | H35: 8527.506
A36: 2019-02-15 | B36: SUMINISTROS ( 6 ) | C36: CCF402 | D36: CARTUCHO LT HP-CF402A | E36: 3 | F36: UND | G36: 2842.502 | H36: 8527.506
A37: 2019-02-15 | B37: SUMINISTROS ( 6 ) | C37: CCF403 | D37: CARTUCHO LT HP-CF403A | E37: 3 | F37: UND | G37: 2872.002 | H37: 8616.006
A38: 2019-02-15 | B38: SUMINISTROS ( 6 ) | C38: CEPILLO P. | D38: CEPILLO PARED | E38: 6 | F38: UND | G38: 65.9974 | H38: 395.9844
A39: 2019-02-15 | B39: SUMINISTROS ( 6 ) | C39: CHP96 | D39: CARTUCHO HP-96 | E39: 14 | F39: UND | G39: 2228.822 | H39: 31203.508
A40: 2019-02-15 | B40: SUMINISTROS ( 6 ) | C40: CHP97 | D40: CARTUCHO HP-97 | E40: 10 | F40: UND | G40: 2118.63147 | H40: 21186.3147
A41: 2006-12-31 | B41: SUMINISTROS ( 6 ) | C41: CINTA OKIDATA -320 | D41: CINTA OKIDATA -320 | E41: 1 | F41: UND | G41: 440 | H41: =+G41*E41 -> 440
A42: 2019-02-15 | B42: SUMINISTROS ( 6 ) | C42: CINTA P/ CALCULADORA | D42: CINTA P/ CALCULADORA ELEC. | E42: 5 | F42: UND | G42: 56.0028 | H42: 280.014
A43: 2019-02-15 | B43: SUMINISTROS ( 6 ) | C43: CUC. DES. | D43: CUCHARAS DES. | E43: 37 | F43: PAQUET | G43: 31.99851 | H43: 1183.94487
A44: 2017-02-01 | B44: SUMINISTROS ( 6 ) | C44: D | D44: DETERGENTE | E44: 19 | F44: UND | G44: 810.80577 | H44: 15405.30963
A45: 2017-02-01 | B45: SUMINISTROS ( 6 ) | C45: DES. | D45: DESINFECTANTE | E45: 24 | F45: GAL | G45: 211.38831 | H45: 5073.31944
A46: 2017-02-07 | B46: SUMINISTROS ( 6 ) | C46: EG. | D46: EGA | E46: 1 | F46: GAL | G46: 769.9972 | H46: 769.9972
A47: 2017-02-06 | B47: SUMINISTROS ( 6 ) | C47: ESC. | D47: ESCOBA | E47: 2 | F47: UND | G47: 184.9886 | H47: 369.9772
A48: 2017-02-01 | B48: SUMINISTROS ( 6 ) | C48: F.M.E. | D48: FORMULARIO EQUIPOS Y/O MOV. | E48: 11 | F48: UND | G48: 188.8 | H48: 2076.8
A49: 2017-02-01 | B49: SUMINISTROS ( 6 ) | C49: F30G | D49: FUNDAS 30GLS. | E49: 48 | F49: PAQUET | G49: 295 | H49: 14160
A50: 2019-02-26 | B50: SUMINISTROS ( 6 ) | C50: FOR. ENT.INS. IMP.AG | D50: FORMULARIO ENT. INSUM .IMPL. AGRICOLA | E50: 19 | F50: UND | G50: 75 | H50: 1425
A51: 2017-02-01 | B51: SUMINISTROS ( 6 ) | C51: FORMULARIO V. Y M. | D51: FORMULARIO DE VISITAS Y MENSAJES | E51: 22 | F51: UND | G51: 35 | H51: 770
A52: 2018-02-21 | B52: SUMINISTROS ( 6 ) | C52: FUND. 55 | D52: FUNDAS 55 P/B. | E52: 44 | F52: PAQUET | G52: 584.1 | H52: 25700.4
A53: 2018-02-21 | B53: SUMINISTROS ( 6 ) | C53: GG. | D53: GUANTES GOMAS | E53: 18 | F53: PAR | G53: 100.005 | H53: 1800.09
A54: 2018-02-21 | B54: SUMINISTROS ( 6 ) | C54: GR26/6 | D54: GRAPAS 26/6 | E54: 6 | F54: CAJA | G54: 44.96579 | H54: 269.79474
A55: 2017-02-07 | B55: SUMINISTROS ( 6 ) | C55: GRAPAS 1/4 | D55: GRPAS 1/4 | E55: 3 | F55: UNIDAD | G55: 108.8 | H55: 326.4
A56: 2017-02-01 | B56: SUMINISTROS ( 6 ) | C56: GRAPAS 3/8 | D56: GRAPAS 3/8 | E56: 2 | F56: UNIDAD | G56: 254.28571 | H56: 508.57142
A57: 2018-02-21 | B57: SUMINISTROS ( 6 ) | C57: GRAP-STAPLES | D57: GRAPAS STAPLES HEAVY DUTY | E57: 3 | F57: UNIDAD | G57: 450 | H57: 1350
A58: 2017-01-31 | B58: SUMINISTROS ( 6 ) | C58: GRP/GG | D58: GRAPAS P/GRAPADORA G. | E58: 9 | F58: UND | G58: 54.9998 | H58: 494.9982
A59: 2018-03-20 | B59: SUMINISTROS ( 6 ) | C59: LIQUI-001 | D59: CORRECTOR LIQUIDO | E59: 12 | F59: UND | G59: 57.94249 | H59: 695.30988
A60: 2019-02-26 | B60: SUMINISTROS ( 6 ) | C60: LLM | D60: JABON LIQ.P/MANOS | E60: 176 | F60: UND | G60: 211.548 | H60: 37232.448
A61: 2019-02-26 | B61: SUMINISTROS ( 6 ) | C61: MPP. | D61: MARCADOR P/PIZ.AZUL | E61: 17 | F61: UND | G61: 34.9988 | H61: 594.9796
A62: 2019-02-26 | B62: SUMINISTROS ( 6 ) | C62: P.TP/M | D62: PAPEL TOALLA P/MANO | E62: 165 | F62: UND | G62: 120.832 | H62: 19937.28
A63: 2019-02-26 | B63: SUMINISTROS ( 6 ) | C63: PAPEL J. | D63: PAPEL JUMBO | E63: 75 | F63: UND | G63: 59.21483 | H63: 4441.11225
A64: 2017-01-26 | B64: SUMINISTROS ( 6 ) | C64: PC4C | D64: PAPEL CONT. 9 1/2 X 11 4C. | E64: 14 | F64: CAJA | G64: 1581.92085 | H64: 22146.8919
A65: 2017-02-01 | B65: SUMINISTROS ( 6 ) | C65: PLATOS N9 | D65: PLATOS DES. N9 | E65: 21 | F65: PAQUET | G65: 59.118 | H65: 1241.478
A66: 2017-01-31 | B66: SUMINISTROS ( 6 ) | C66: PP/B | D66: PASTILLA PERF. P/B | E66: 99 | F66: UND | G66: 40.9932 | H66: 4058.3268
A67: 2017-09-26 | B67: SUMINISTROS ( 6 ) | C67: ROLL | D67: ROLLO PAPEL 2-1/4 SUMADORA | E67: 16 | F67: UND | G67: 17 | H67: 272
A68: 2018-03-26 | B68: SUMINISTROS ( 6 ) | C68: RTR | D68: ROLON TINTA ROJA | E68: 2 | F68: UND | G68: 84.75 | H68: 169.5
A69: 2017-02-01 | B69: SUMINISTROS ( 6 ) | C69: SUM-AZU | D69: LAPICEROS AZUL | E69: 19 | F69: UND | G69: 13.275 | H69: 252.225
A70: 2019-02-26 | B70: SUMINISTROS ( 6 ) | C70: SUM-BRI G. | D70: BRILLO GORDO | E70: 14 | F70: UND | G70: 15.34 | H70: 214.76
A71: 2017-05-08 | B71: SUMINISTROS ( 6 ) | C71: SUM-CAF | D71: CAFE | E71: 175 | F71: LIBRA | G71: 248.75051 | H71: 43531.33925
A72: 2018-02-21 | B72: SUMINISTROS ( 6 ) | C72: SUM-CARP.GRAN. | D72: CARPETA GRANDE 3 HOYOS | E72: 4 | F72: UND | G72: 299.9999 | H72: 1199.9996
A73: 2017-01-23 | B73: SUMINISTROS ( 6 ) | C73: SUM-CART.HP-60 C. | D73: CARTUCHO HP-60 COLOR | E73: 1 | F73: UND | G73: 860.38857 | H73: =+G73*E73 -> 860.38857
A74: 2018-05-11 | B74: SUMINISTROS ( 6 ) | C74: SUM-CCCH | D74: COMPROBANTE DE CAJA CHICA | E74: 135 | F74: UND | G74: 32.69073 | H74: 4413.24855
A75: 2017-02-01 | B75: SUMINISTROS ( 6 ) | C75: SUM-CEPIPLAS | D75: CEPILLO PARA INODORO | E75: 9 | F75: UND | G75: 112.9732 | H75: 1016.7588
A76: 2018-05-11 | B76: SUMINISTROS ( 6 ) | C76: SUM-CH | D76: CHINCHETAS | E76: 8 | F76: UNIDAD | G76: 50 | H76: 400
A77: 2018-05-11 | B77: SUMINISTROS ( 6 ) | C77: SUM-CLI | D77: CLIP JUMBO | E77: 4 | F77: UND | G77: 48.0024 | H77: 192.0096
A78: 2017-01-26 | B78: SUMINISTROS ( 6 ) | C78: SUM-CLIP MAR. | D78: CLIP MARIPOSA | E78: 33 | F78: CAJA | G78: 150 | H78: 4950
A79: 2019-02-26 | B79: SUMINISTROS ( 6 ) | C79: SUM-CLO | D79: CLORO | E79: 36 | F79: GAL | G79: 114.991 | H79: 4139.676
A80: 2018-03-23 | B80: SUMINISTROS ( 6 ) | C80: SUM-ETF | D80: ETIQUETA PARA FOLDERS | E80: 12 | F80: UND | G80: 89.3142 | H80: 1071.7704
A81: 2017-01-26 | B81: SUMINISTROS ( 6 ) | C81: SUM-FAR | D81: FAROLA | E81: 9 | F81: UND | G81: 88.5 | H81: 796.5
A82: 2019-02-26 | B82: SUMINISTROS ( 6 ) | C82: SUM-FELN | D82: FELPAS NEGRAS | E82: 16 | F82: UND | G82: 35.4 | H82: 566.4
A83: 2019-02-26 | B83: SUMINISTROS ( 6 ) | C83: SUM-FGD | D83: FOLDER DE GAVETA DOBLE | E83: 22 | F83: UND | G83: 23.81398 | H83: 523.90756
A84: 2019-02-26 | B84: SUMINISTROS ( 6 ) | C84: SUM-FINANC | D84: FOLDERS FINANCIERO | E84: 135 | F84: UND | G84: 44.73073 | H84: 6038.64855
A85: 2018-03-23 | B85: SUMINISTROS ( 6 ) | C85: SUM-FOL11 | D85: FOLDER 8 1/2 X11 | E85: 483 | F85: UND | G85: 3.245 | H85: 1567.335
A86: 2018-03-23 | B86: SUMINISTROS ( 6 ) | C86: SUM-FOL14 | D86: FOLDER 8 1/2 14 | E86: 643 | F86: UND | G86: 4.15 | H86: 2668.45
A87: 2019-02-26 | B87: SUMINISTROS ( 6 ) | C87: SUM-FUN17 | D87: FUNDAS17/22 | E87: 44 | F87: PAQUET | G87: 98.54255 | H87: 4335.8722
A88: 2018-03-23 | B88: SUMINISTROS ( 6 ) | C88: SUM-GMH | D88: GANCHOS M/H | E88: 9 | F88: UNIDAD | G88: 109.9996 | H88: 989.9964
A89: 2019-02-26 | B89: SUMINISTROS ( 6 ) | C89: SUM-GOM | D89: GOMITAS | E89: 11 | F89: CAJA | G89: 29.9956 | H89: 329.9516
A90: 2017-02-01 | B90: SUMINISTROS ( 6 ) | C90: SUM-JB. AZ. | D90: JABON AZULITO | E90: 173 | F90: UND | G90: 35.44485 | H90: 6131.95905
A91: 2006-12-31 | B91: SUMINISTROS ( 6 ) | C91: SUM-LAP.N. | D91: LAPICERO NEGRO | E91: 394 | F91: UND | G91: 10.17084 | H91: 4007.31096
A92: 2006-12-31 | B92: SUMINISTROS ( 6 ) | C92: SUM-LAPIRO | D92: LAPICERO ROJO | E92: 13 | F92: UND | G92: 7.73224 | H92: 100.51912
A93: 2017-01-26 | B93: SUMINISTROS ( 6 ) | C93: SUM-LCAR | D93: LAPIZ | E93: 316 | F93: UND | G93: 12.72233 | H93: 4020.25628
A94: 2017-01-26 | B94: SUMINISTROS ( 6 ) | C94: SUM-MAR | D94: MARCADORES | E94: 4 | F94: UND | G94: 23.26066 | H94: 93.04264
A95: 2019-02-26 | B95: SUMINISTROS ( 6 ) | C95: SUM-POC | D95: PORTA CLIP | E95: 2 | F95: UND | G95: 44.07895 | H95: 88.1579
A96: 2018-03-23 | B96: SUMINISTROS ( 6 ) | C96: SUM-RECBA | D96: RECOGEDOR DE BASURA | E96: 2 | F96: UND | G96: 129.8 | H96: 259.6
A97: 2019-02-26 | B97: SUMINISTROS ( 6 ) | C97: SUM-RPT | D97: RESMA PAPEL TIMBRADO | E97: 5 | F97: RESMA | G97: 2137.48571 | H97: 10687.42855
A98: 2018-03-23 | B98: SUMINISTROS ( 6 ) | C98: SUM-RPX14 | D98: RESMA DE PAPEL 81/2X14 | E98: 47 | F98: RESMA | G98: 250.75 | H98: 11785.25
A99: 2018-03-23 | B99: SUMINISTROS ( 6 ) | C99: SUM-SAP | D99: SACA PUNTA | E99: 2 | F99: UND | G99: 14.9978 | H99: 29.9956
A100: 2018-03-23 | B100: SUMINISTROS ( 6 ) | C100: SUM-SER | D100: SERVILLETAS | E100: 42 | F100: PAQUET | G100: 112.985 | H100: 4745.37
A101: 2018-03-23 | B101: SUMINISTROS ( 6 ) | C101: SUM-SO | D101: SOBRES BLANCOS | E101: 184 | F101: UND | G101: 1.45 | H101: 266.8
A102: 2018-03-23 | B102: SUMINISTROS ( 6 ) | C102: SUM-STIM | D102: SOBRES TIMBRADOS | E102: 835 | F102: UND | G102: 10.2424 | H102: 8552.404
A103: 2018-03-23 | B103: SUMINISTROS ( 6 ) | C103: SUM-SUAP | D103: SUAPER | E103: 16 | F103: UND | G103: 158.9932 | H103: 2543.8912
A104: 2017-01-26 | B104: SUMINISTROS ( 6 ) | C104: SUM-TAL.ORD. DESP. | D104: TALONARIO ORDEN DE DESPACHO. | E104: 252 | F104: UND | G104: 200.59612 | H104: 50550.22224
A105: 2017-01-26 | B105: SUMINISTROS ( 6 ) | C105: SUM-TALEM | D105: TALONARIO ENT. DE MATERIALES | E105: 240 | F105: UND | G105: 57.3232 | H105: =+G105*E105 -> 13757.568
A106: 2017-01-26 | B106: SUMINISTROS ( 6 ) | C106: SUM-TBLL | D106: TABLILLAS | E106: 1 | F106: UND | G106: 84.9954 | H106: 84.9954
A107: 2017-01-26 | B107: SUMINISTROS ( 6 ) | C107: SUM-TCR | D107: TALONARIO CONTROL DE RECEPCION | E107: 76 | F107: UND | G107: 53.39806 | H107: 4058.25256
A108: 2017-01-26 | B108: SUMINISTROS ( 6 ) | C108: SUM-TCS | D108: TALONARIO CONTROL DE SEMILLAS | E108: 63 | F108: UND | G108: 72.55753 | H108: 4571.12439
A109: 2017-01-26 | B109: SUMINISTROS ( 6 ) | C109: SUM-TLCAGR | D109: TALONARIO CONTROL AGROQUIMICO | E109: 89 | F109: UND | G109: 218.81945 | H109: 19474.93105
A110: 2017-01-26 | B110: SUMINISTROS ( 6 ) | C110: SUM-TRP | D110: TALONARIO RECIBO PROVISIONAL | E110: 43 | F110: UND | G110: 133.9536 | H110: 5760.0048
A111: 2017-01-26 | B111: SUMINISTROS ( 6 ) | C111: SUM-VAS | D111: VASOS #10 | E111: 150 | F111: PAQUET | G111: 83.78 | H111: 12567
A112: 2017-01-26 | B112: SUMINISTROS ( 6 ) | C112: T,MAG. | D112: TINTA BT 5001 MAGENTA | E112: 4 | F112: UND | G112: 413 | H112: 1652
A113: 2017-01-26 | B113: SUMINISTROS ( 6 ) | C113: T.5001 | D113: TINTA BT 5001 CYAN | E113: 4 | F113: UND | G113: 413 | H113: 1652
A114: 2017-01-26 | B114: SUMINISTROS ( 6 ) | C114: T.BT. | D114: TINTA BT D60BK | E114: 5 | F114: UND | G114: 590 | H114: 2950
A115: 2017-01-26 | B115: SUMINISTROS ( 6 ) | C115: T.Y, | D115: TINTA BT 5001 YELLOW | E115: 4 | F115: UND | G115: 413 | H115: 1652
A116: 2017-01-26 | B116: SUMINISTROS ( 6 ) | C116: TA | D116: TINTA AZUL P/S | E116: 3 | F116: POTE | G116: 38 | H116: 114
A117: 2017-01-26 | B117: SUMINISTROS ( 6 ) | C117: TALON.PERS.NOM. | D117: TALONARIO PERSONAL NOMINAL | E117: 4 | F117: UND | G117: 95 | H117: 380
A118: 2017-01-26 | B118: SUMINISTROS ( 6 ) | C118: TALONARIO SOL. C.C. | D118: TALONARIO SOLICITUD CAJA CHICA | E118: 53 | F118: UND | G118: 32.69076 | H118: 1732.61028
A119: 2017-01-26 | B119: SUMINISTROS ( 6 ) | C119: TB, | D119: TINTA 664 BLACK | E119: 3 | F119: UND | G119: 649 | H119: 1947
A120: 2019-02-15 | B120: SUMINISTROS ( 6 ) | C120: TB,. | D120: TINTA 664 Y. | E120: 5 | F120: UND | G120: 649 | H120: 3245
A121: 2019-02-15 | B121: SUMINISTROS ( 6 ) | C121: TB. | D121: TINTA 664 CYAN | E121: 7 | F121: UND | G121: 590 | H121: 4130
A122: 2017-01-26 | B122: SUMINISTROS ( 6 ) | C122: TB664 | D122: TINTA 664 MAG. | E122: 6 | F122: UND | G122: 590 | H122: 3540
A123: 2019-02-15 | B123: SUMINISTROS ( 6 ) | C123: TCVP | D123: TALON.CONTROL VISITAS A PROD. | E123: 46 | F123: UND | G123: 55 | H123: 2530
A124: 2019-02-15 | B124: SUMINISTROS ( 6 ) | C124: TE504C | D124: TINTA 504 CYAN | E124: 14 | F124: UND | G124: 627.79707 | H124: 8789.15898
A125: 2019-02-15 | B125: SUMINISTROS ( 6 ) | C125: TE504M | D125: TINTA 504 M. | E125: 10 | F125: UND | G125: 563.74067 | H125: 5637.4067
A126: 2019-02-15 | B126: SUMINISTROS ( 6 ) | C126: TE504Y | D126: TINTA 504 Y. | E126: 15 | F126: UND | G126: 561.3896 | H126: 8420.844
A127: 2019-02-15 | B127: SUMINISTROS ( 6 ) | C127: TEL200C | D127: TINTA EPSON L200 CYAN | E127: 5 | F127: UND | G127: 615.0042 | H127: 3075.021
A128: 2019-02-15 | B128: SUMINISTROS ( 6 ) | C128: TEL200M | D128: TINTA EPSON L200 MAG. | E128: 6 | F128: UND | G128: 615.0042 | H128: 3690.0252
A129: 2019-02-15 | B129: SUMINISTROS ( 6 ) | C129: TEL200Y | D129: TINTA EPSON L200 YELLOW | E129: 5 | F129: UND | G129: 615.0042 | H129: 3075.021
A130: 2019-02-15 | B130: SUMINISTROS ( 6 ) | C130: TET504 | D130: TINTA 504 BLACK | E130: 3 | F130: UND | G130: 631.64706 | H130: 1894.94118
A131: 2019-02-15 | B131: SUMINISTROS ( 6 ) | C131: TODC. | D131: TALONARIO ORDEN DESP. COMB. | E131: 126 | F131: UND | G131: 74.2 | H131: 9349.2
A132: 2019-02-15 | B132: SUMINISTROS ( 6 ) | C132: TP/C | D132: TOALLA P/COCINA | E132: 18 | F132: UND | G132: 84.80418 | H132: 1526.47524
A133: 2019-02-15 | B133: SUMINISTROS ( 6 ) | C133: TRCA | D133: TINTA RIAL C. AZUL | E133: 1 | F133: UND | G133: 300.0032 | H133: 300.0032
A134: 2019-02-15 | B134: SUMINISTROS ( 6 ) | C134: TRCA, | D134: TINTA RIAL C. AMARILLA | E134: 1 | F134: UND | G134: 300.0032 | H134: 300.0032
A135: 2019-02-15 | B135: SUMINISTROS ( 6 ) | C135: TRCR | D135: TINTA RIAL C. ROJO | E135: 2 | F135: UND | G135: 300.0032 | H135: 600.0064
A136: 2019-02-15 | B136: SUMINISTROS ( 6 ) | C136: VASOS #7 | D136: VASOS #7 | E136: 150 | F136: PAQUET | G136: 74.23595 | H136: 11135.3925
A137: 2019-02-15 | B137: SUMINISTROS ( 6 ) | C137: VN5 | D137: VASOS N. 5 | E137: 114 | F137: PAQUET | G137: 92.8778 | H137: =+G137*E137 -> 10588.0692
A138: TOTAL | H138: =SUM(H9:H137) -> 734325.5296
A155: INSTITUTO DEL TABACO DE LA REPÚBLICA DOMINICANA
A156: INVENTARIO SUMINISTRO
A157: MES DE FEBRERO 2022
A159: Fecha de adquisión y/o registro | B159: Artículo | C159: Código Institucional | D159: Descripción artículo | E159: Existencia | F159: Unidad | G159: Costo | H159: Valor
A162: 2018-03-23 | B162: GENERAL ( 10 ) | C162: CART-BC1-3BK | D162: CARTUCHO BC1-3BK | E162: 2 | F162: UND | G162: 757.872 | H162: =+G162*E162 -> 1515.744
A163: 2018-03-23 | B163: GENERAL ( 10 ) | C163: CARTUCH-HP-95 | D163: CARTUCHO HP-95 COLOR | E163: 4 | F163: UND | G163: 1416 | H163: 5664
A164: 2017-02-01 | B164: GENERAL ( 10 ) | C164: CINTA-001 | D164: CINTA ADHESIVA | E164: 5 | F164: UNIDAD | G164: 77.998 | H164: 389.99
A165: 2018-03-23 | B165: GENERAL ( 10 ) | C165: PAPE-CON-9 1/2X5 1/2 | D165: PAPEL CONTINUO 9 1/2 X 5 1/2 P. FACT. | E165: 4 | F165: UNIDAD | G165: 601.694 | H165: 2406.776
A166: 2018-03-23 | B166: GENERAL ( 10 ) | C166: PERFO-001 | D166: PERFORADORA DE 3 HOYOS | E166: 2 | F166: UND | G166: 350 | H166: 700
A167: 2018-03-23 | B167: OTROS ( 5 ) | C167: AMBIEN 2 | D167: AMBIENTADOR 2 | E167: 24 | F167: UND | G167: 85.02144 | H167: 2040.51456
A168: 2017-02-01 | B168: OTROS ( 5 ) | C168: BRILLO .V. | D168: BRILLO VERDE | E168: 16 | F168: UND | G168: 59.885 | H168: 958.16
A169: 2017-02-06 | B169: OTROS ( 5 ) | C169: C.D.C | D169: CINTA DOBLE CARA | E169: 24 | F169: UND | G169: 40 | H169: 960
A170: 2018-03-23 | B170: OTROS ( 5 ) | C170: CD,. | D170: CUBIERTOS DES. | E170: 45 | F170: PAQUET | G170: 32.12152 | H170: 1445.4684
A171: 2019-02-26 | B171: OTROS ( 5 ) | C171: CREM | D171: CREMORA | E171: 4 | F171: UND | G171: 321.70498 | H171: 1286.81992
A172: 2018-03-23 | B172: OTROS ( 5 ) | C172: GRAPAS 3 | D172: GRAPAS 3/4 | E172: 7 | F172: CAJA | G172: 211.864 | H172: 1483.048
A173: 2018-03-23 | B173: OTROS ( 5 ) | C173: LAN | D173: LANILLA P/LIMPIAR | E173: 43 | F173: UND | G173: 44.9934 | H173: 1934.7162
A174: 2018-03-23 | B174: OTROS ( 5 ) | C174: LT, | D174: LIBRETA TIMBRADA | E174: 135 | F174: UND | G174: 197.65 | H174: 26682.75
A175: 2017-01-31 | B175: OTROS ( 5 ) | C175: PDN6 | D175: PLATOS DESECH. N6 | E175: 30 | F175: PAQUET | G175: 52.038 | H175: 1561.14
A176: 2018-02-21 | B176: OTROS ( 5 ) | C176: T.L210C | D176: TINTA L210 CYAN | E176: 6 | F176: UND | G176: 450.15558 | H176: 2700.93348
A177: 2019-02-26 | B177: OTROS ( 5 ) | C177: T.S.2031 | D177: TONER SHARP 2031 C/CHIP | E177: 6 | F177: UND | G177: 4669.49403 | H177: 28016.96418
A178: 2019-02-26 | B178: OTROS ( 5 ) | C178: TS.M. | D178: TALON. SOLICITUD MATERIALES | E178: 41 | F178: UND | G178: 150 | H178: 6150
A179: 2017-02-23 | B179: SUMINISTROS ( 6 ) | C179: AZ. | D179: AZUCAR | E179: 6 | F179: SACOS | G179: 3512.39192 | H179: 21074.35152
A180: 2017-03-31 | B180: SUMINISTROS ( 6 ) | C180: C.2 | D180: CLIP BILLETERO 51MM | E180: 41 | F180: CAJA | G180: 171.01062 | H180: 7011.43542
A181: 2019-02-26 | B181: SUMINISTROS ( 6 ) | C181: C.E 890 | D181: CINTA EPSON 890 | E181: 5 | F181: UND | G181: 325.53846 | H181: 1627.6923
A182: 2017-04-24 | B182: SUMINISTROS ( 6 ) | C182: CART. HP-94 | D182: CARTUCHO HP-98 (NUEVO) | E182: 4 | F182: UND | G182: 923.78905 | H182: 3695.1562
A183: 2017-02-07 | B183: SUMINISTROS ( 6 ) | C183: CARTUCHO HP-93 | D183: CARTUCHO HP-93 COLOR | E183: 3 | F183: UND | G183: 1019.277 | H183: 3057.831
A184: 2018-03-23 | B184: SUMINISTROS ( 6 ) | C184: CB 1.5 | D184: CLIP BILLETERO 41MM | E184: 5 | F184: CAJA | G184: 134.034 | H184: 670.17
A185: 2018-03-23 | B185: SUMINISTROS ( 6 ) | C185: CCF401 | D185: CARTUCHO LT HP-CF401A | E185: 3 | F185: UND | G185: 2842.502 | H185: 8527.506
A186: 2017-04-24 | B186: SUMINISTROS ( 6 ) | C186: CCF402 | D186: CARTUCHO LT HP-CF402A | E186: 3 | F186: UND | G186: 2842.502 | H186: 8527.506
A187: 2019-02-15 | B187: SUMINISTROS ( 6 ) | C187: CCF403 | D187: CARTUCHO LT HP-CF403A | E187: 3 | F187: UND | G187: 2872.002 | H187: 8616.006
A188: 2019-02-15 | B188: SUMINISTROS ( 6 ) | C188: CEPILLO P. | D188: CEPILLO PARED | E188: 6 | F188: UND | G188: 65.9974 | H188: 395.9844
A189: 2019-02-15 | B189: SUMINISTROS ( 6 ) | C189: CHP96 | D189: CARTUCHO HP-96 | E189: 14 | F189: UND | G189: 2228.822 | H189: 31203.508
A190: 2019-02-15 | B190: SUMINISTROS ( 6 ) | C190: CHP97 | D190: CARTUCHO HP-97 | E190: 10 | F190: UND | G190: 2118.63147 | H190: 21186.3147
A191: 2019-02-15 | B191: SUMINISTROS ( 6 ) | C191: CINTA OKIDATA -320 | D191: CINTA OKIDATA -320 | E191: 1 | F191: UND | G191: 440 | H191: 440
A192: 2019-02-15 | B192: SUMINISTROS ( 6 ) | C192: CINTA P/ CALCULADORA | D192: CINTA P/ CALCULADORA ELEC. | E192: 5 | F192: UND | G192: 56.0028 | H192: 280.014
A193: 2019-02-15 | B193: SUMINISTROS ( 6 ) | C193: CUC. DES. | D193: CUCHARAS DES. | E193: 24 | F193: PAQUET | G193: 31.99851 | H193: 767.96424
A194: 2006-12-31 | B194: SUMINISTROS ( 6 ) | C194: D | D194: DETERGENTE | E194: 19 | F194: UND | G194: 810.80577 | H194: =+G194*E194 -> 15405.30963
A195: 2019-02-15 | B195: SUMINISTROS ( 6 ) | C195: F.M.E. | D195: FORMULARIO EQUIPOS Y/O MOV. | E195: 11 | F195: UND | G195: 188.8 | H195: 2076.8
A196: 2019-02-15 | B196: SUMINISTROS ( 6 ) | C196: F30G | D196: FUNDAS 30GLS. | E196: 45 | F196: PAQUET | G196: 295 | H196: 13275
A197: 2017-02-01 | B197: SUMINISTROS ( 6 ) | C197: FOR. ENT.INS. IMP.AG | D197: FORMULARIO ENT. INSUM .IMPL. AGRICOLA | E197: 19 | F197: UND | G197: 75 | H197: 1425
A198: 2017-02-01 | B198: SUMINISTROS ( 6 ) | C198: FORMULARIO V. Y M. | D198: FORMULARIO DE VISITAS Y MENSAJES | E198: 22 | F198: UND | G198: 35 | H198: 770
A199: 2017-02-07 | B199: SUMINISTROS ( 6 ) | C199: FUND. 55 | D199: FUNDAS 55 P/B. | E199: 41 | F199: PAQUET | G199: 584.1 | H199: 23948.1
A200: 2017-02-06 | B200: SUMINISTROS ( 6 ) | C200: GG. | D200: GUANTES GOMAS | E200: 13 | F200: PAR | G200: 100.005 | H200: 1300.065
A201: 2017-02-01 | B201: SUMINISTROS ( 6 ) | C201: GR26/6 | D201: GRAPAS 26/6 | E201: 5 | F201: CAJA | G201: 44.96579 | H201: 224.82895
A202: 2017-02-01 | B202: SUMINISTROS ( 6 ) | C202: GRAPAS 1/4 | D202: GRPAS 1/4 | E202: 3 | F202: UNIDAD | G202: 108.8 | H202: 326.4
A203: 2019-02-26 | B203: SUMINISTROS ( 6 ) | C203: GRAPAS 3/8 | D203: GRAPAS 3/8 | E203: 2 | F203: UNIDAD | G203: 254.28571 | H203: 508.57142
A204: 2017-02-01 | B204: SUMINISTROS ( 6 ) | C204: GRAP-STAPLES | D204: GRAPAS STAPLES HEAVY DUTY | E204: 3 | F204: UNIDAD | G204: 450 | H204: 1350
A205: 2018-02-21 | B205: SUMINISTROS ( 6 ) | C205: GS23/10 | D205: GRAPAS STAPLES 23/10 | E205: 9 | F205: CAJA | G205: 54.9998 | H205: 494.9982
A206: 2018-02-21 | B206: SUMINISTROS ( 6 ) | C206: LIQUI-001 | D206: CORRECTOR LIQUIDO | E206: 7 | F206: UND | G206: 57.94249 | H206: 405.59743
A207: 2018-02-21 | B207: SUMINISTROS ( 6 ) | C207: LLM | D207: JABON LIQ.P/MANOS | E207: 172 | F207: UND | G207: 211.548 | H207: 36386.256
A208: 2017-02-07 | B208: SUMINISTROS ( 6 ) | C208: MPP. | D208: MARCADOR P/PIZ.AZUL | E208: 16 | F208: UND | G208: 34.9988 | H208: 559.9808
A209: 2017-02-01 | B209: SUMINISTROS ( 6 ) | C209: P.TP/M | D209: PAPEL TOALLA P/MANO | E209: 379 | F209: UND | G209: 156.8407 | H209: 59442.6253
A210: 2018-02-21 | B210: SUMINISTROS ( 6 ) | C210: PAPEL J. | D210: PAPEL JUMBO | E210: 528 | F210: UND | G210: 56.16214 | H210: 29653.60992
A211: 2017-01-31 | B211: SUMINISTROS ( 6 ) | C211: PC4C | D211: PAPEL CONT. 9 1/2 X 11 4C. | E211: 13 | F211: CAJA | G211: 1581.92085 | H211: 20564.97105
A212: 2018-03-20 | B212: SUMINISTROS ( 6 ) | C212: PLATOS N9 | D212: PLATOS DES. N9 | E212: 12 | F212: PAQUET | G212: 59.118 | H212: 709.416
A213: 2019-02-26 | B213: SUMINISTROS ( 6 ) | C213: PP/B | D213: PASTILLA PERF. P/B | E213: 86 | F213: UND | G213: 40.9932 | H213: 3525.4152
A214: 2019-02-26 | B214: SUMINISTROS ( 6 ) | C214: ROLL | D214: ROLLO PAPEL 2-1/4 SUMADORA | E214: 16 | F214: UND | G214: 17 | H214: 272
A215: 2019-02-26 | B215: SUMINISTROS ( 6 ) | C215: RTR | D215: ROLON TINTA ROJA | E215: 2 | F215: UND | G215: 84.75 | H215: 169.5
A216: 2019-02-26 | B216: SUMINISTROS ( 6 ) | C216: SUM-AZU | D216: LAPICEROS AZUL | E216: 1 | F216: UND | G216: 13.275 | H216: 13.275
A217: 2017-01-26 | B217: SUMINISTROS ( 6 ) | C217: SUM-BRI G. | D217: BRILLO GORDO | E217: 12 | F217: UND | G217: 15.34 | H217: 184.08
A218: 2017-02-01 | B218: SUMINISTROS ( 6 ) | C218: SUM-CAF | D218: CAFE | E218: 87 | F218: LIBRA | G218: 248.75051 | H218: 21641.29437
A219: 2017-01-31 | B219: SUMINISTROS ( 6 ) | C219: SUM-CARP.GRAN. | D219: CARPETA GRANDE 3 HOYOS | E219: 4 | F219: UND | G219: 299.9999 | H219: 1199.9996
A220: 2017-09-26 | B220: SUMINISTROS ( 6 ) | C220: SUM-CART.HP-60 C. | D220: CARTUCHO HP-60 COLOR | E220: 1 | F220: UND | G220: 860.38857 | H220: 860.38857
A221: 2018-03-26 | B221: SUMINISTROS ( 6 ) | C221: SUM-CCCH | D221: COMPROBANTE DE CAJA CHICA | E221: 135 | F221: UND | G221: 32.69073 | H221: 4413.24855
A222: 2017-02-01 | B222: SUMINISTROS ( 6 ) | C222: SUM-CEPIPLAS | D222: CEPILLO PARA INODORO | E222: 9 | F222: UND | G222: 112.9732 | H222: 1016.7588
A223: 2019-02-26 | B223: SUMINISTROS ( 6 ) | C223: SUM-CH | D223: CHINCHETAS | E223: 8 | F223: UNIDAD | G223: 50 | H223: 400
... 195 more rows
